fUSD/lending_fUSD_20240502
["ID","MTS","AMOUNT","RATE_DAILY","PERIOD"]
[325261232,1714667487912,-500.0,0.00036712,7]
[325261233,1714667487921,-500.0,0.00036712,7]
[325261234,1714667487930,-1001.86,0.00036712,7]
[325261235,1714667487939,-2952.1,0.00036712,7]
[325261236,1714667487949,-819.54,0.00036712,7]
[325261237,1714667487957,-500.0,0.00036712,7]
[325261238,1714667487966,-3059.94,0.00036712,7]
[325261239,1714667487975,-500.0,0.00036712,7]
[325261240,1714667487985,-795.07,0.00036712,7]
[325261241,1714667487994,-500.0,0.00036712,7]
[325261242,1714667488003,-500.0,0.00036712,7]
[325261243,1714667488014,-3463.21,0.00036712,7]
[325261244,1714667488023,-500.0,0.00036712,7]
[325261245,1714667488033,-13279.58,0.00036712,7]
[325261246,1714667488042,-247.88043722,0.00036712,7]
[325261247,1714667488052,-500.0,0.00036712,7]
[325261248,1714667488062,-1076.26,0.00036712,7]
[325261249,1714667488071,-500.0,0.00036712,7]
[325261250,1714667488081,-18209.22,0.00036712,7]
[325261251,1714667488090,-7110.62,0.00036712,7]
[325261252,1714667488099,-500.0,0.00036712,7]
[325261253,1714667488109,-565.04,0.00036712,7]
[325261254,1714667488118,-500.0,0.00036712,7]
[325261255,1714667488127,-500.0,0.00036712,7]
[325261256,1714667488137,-500.0,0.00036712,7]
[325261257,1714667488147,-500.0,0.00036712,7]
[325261258,1714667488156,-500.0,0.00036712,7]
[325261259,1714667488166,-5486.0,0.00036795,120]
[325261260,1714667488175,-385.0,0.000368,10]
[325261261,1714667488185,-308.76784163,0.0003687,2]
[325261262,1714667488195,-3950.25146337,0.00036891,9]
[325261263,1714667488204,-2572.2865909,0.00036986,3]
[325261264,1714667488214,-500.0,0.00036986,7]
[325261265,1714667488223,-500.0,0.00036986,7]
[325261266,1714667488233,-500.0,0.00036986,7]
[325261267,1714667488242,-199.90959013,0.00036986,7]
[325261268,1714667488253,-500.0,0.00036986,7]
[325261269,1714667488264,-322.60159222,0.00036986,7]
[325261270,1714667488274,-512.7682575,0.00036986,7]
[325261271,1714667488283,-326.11625148,0.00036986,7]
[325261272,1714667488294,-546.4187711,0.00036986,7]
[325261273,1714667488303,-500.0,0.00036986,7]
[325261274,1714667488313,-580.39047406,0.00036986,7]
[325261275,1714667488322,-500.0,0.00036986,7]
[325261276,1714667488336,-500.0,0.00036986,7]
[325261277,1714667488346,-500.0,0.00036986,7]
[325261278,1714667488356,-500.0,0.00036986,7]
[325261279,1714667488365,-500.0,0.00036986,7]
[325261280,1714667488375,-500.0,0.00036986,7]
[325261281,1714667488384,-500.0,0.00036986,7]
[325261282,1714667488394,-506.321465,0.00036986,7]
[325261283,1714667488404,-500.53745225,0.00036986,7]
[325261284,1714667488413,-583.57061454,0.00036986,7]
[325261285,1714667488422,-500.0,0.00036986,7]
[325261286,1714667488432,-500.0,0.00036986,7]
[325261287,1714667488441,-500.0,0.00036986,7]
[325261288,1714667488451,-500.0,0.00036986,7]
[325261289,1714667488461,-500.0,0.00036986,7]
[325261290,1714667488470,-500.0,0.00036986,7]
[325261291,1714667488480,-507.46527423,0.00036986,7]
[325261292,1714667488489,-712.36,0.00036986,7]
[325261293,1714667488499,-509.38346545,0.00036986,7]
[325261294,1714667488509,-500.0,0.00036986,7]
[325261295,1714667488518,-500.0,0.00036986,7]
[325261296,1714667488528,-500.0,0.00036986,7]
[325261297,1714667488538,-500.0,0.00036986,7]
[325261298,1714667488548,-500.0,0.00036986,7]
[325261299,1714667488558,-510.14,0.00036986,7]
[325261300,1714667488568,-500.0,0.00036986,7]
[325261301,1714667488578,-500.0,0.00036986,7]
[325261302,1714667488588,-644.34,0.00036986,7]
[325261303,1714667488598,-500.0,0.00036986,7]
[325261304,1714667488608,-500.56,0.00036986,7]
[325261305,1714667488617,-548.1,0.00036986,7]
[325261306,1714667488627,-502.87686006,0.00036986,7]
[325261307,1714667488637,-500.0,0.00036986,7]
[325261308,1714667488647,-500.0,0.00036986,7]
[325261309,1714667488656,-500.0,0.00036986,7]
[325261310,1714667488666,-500.0,0.00036986,7]
[325261311,1714667488675,-500.0,0.00036986,7]
[325261312,1714667488685,-607.02,0.00036986,7]
[325261313,1714667488698,-684.9,0.00036986,7]
[325261314,1714667488708,-500.0,0.00036986,7]
[325261315,1714667488717,-500.0,0.00036986,7]
[325261316,1714667488727,-500.0,0.00036986,7]
[325261317,1714667488737,-500.0,0.00036986,7]
[325261318,1714667488748,-500.0,0.00036986,7]
[325261319,1714667488758,-500.0,0.00036986,7]
[325261320,1714667488767,-500.0,0.00036986,7]
[325261321,1714667488777,-500.0,0.00036986,7]
[325261322,1714667488786,-500.0,0.00036986,7]
[325261323,1714667488796,-549.89,0.00036986,7]
[325261324,1714667488806,-500.0,0.00036986,7]
[325261325,1714667488824,-500.0,0.00036986,7]
[325261326,1714667488834,-500.0,0.00036986,7]
[325261327,1714667488843,-500.0,0.00036986,7]
[325261328,1714667488853,-500.0,0.00036986,7]
[325261329,1714667488862,-500.0,0.00036986,7]
[325261330,1714667488872,-500.0,0.00036986,7]
[325261331,1714667488882,-505.17,0.00036986,2]
[325261332,1714667488892,-500.0,0.00036986,7]
[325261333,1714667488903,-609.55,0.00036986,7]
[325261334,1714667488912,-500.0,0.00036986,7]
[325261335,1714667488921,-500.0,0.00036986,7]
[325261336,1714667488931,-158.81,0.00036986,7]
[325261337,1714667488941,-500.0,0.00036986,7]
[325261338,1714667488950,-719.24,0.00036986,7]
[325261339,1714667488960,-500.0,0.00036986,7]
[325261340,1714667488969,-500.0,0.00036986,7]
[325261341,1714667488979,-500.0,0.00036986,7]
[325261342,1714667488990,-504.16865518,0.00036986,7]
[325261343,1714667488999,-500.0,0.00036986,7]
[325261344,1714667489009,-500.0,0.00036986,7]
[325261345,1714667489019,-500.0,0.00036986,7]
[325261346,1714667489029,-500.0,0.00036986,7]
[325261347,1714667489039,-500.0,0.00036986,7]
[325261348,1714667489048,-500.0,0.00036986,7]
[325261349,1714667489058,-500.0,0.00036986,7]
[325261350,1714667489067,-500.0,0.00036986,7]
[325261351,1714667489077,-500.0,0.00036986,7]
[325261352,1714667489086,-500.0,0.00036986,7]
[325261353,1714667489096,-500.0,0.00036986,7]
[325261354,1714667489106,-500.0,0.00036986,7]
[325261355,1714667489116,-500.0,0.00036986,7]
[325261356,1714667489125,-500.0,0.00036986,7]
[325261357,1714667489135,-500.0,0.00036986,7]
[325261358,1714667489145,-500.0,0.00036986,7]
[325261359,1714667489159,-500.0,0.00036986,7]
[325261360,1714667489169,-849.68,0.00036986,7]
[325261361,1714667489179,-500.0,0.00036986,7]
[325261362,1714667489188,-500.0,0.00036986,7]
[325261363,1714667489198,-500.0,0.00036986,7]
[325261364,1714667489208,-500.0,0.00036986,7]
[325261365,1714667489219,-500.0,0.00036986,7]
[325261366,1714667489230,-914.78,0.00036986,7]
[325261367,1714667489490,-500.0,0.00036986,7]
[325261368,1714667489501,-500.0,0.00036986,7]
[325261369,1714667489512,-527.16,0.00036986,7]
[325261370,1714667489522,-500.0,0.00036986,7]
[325261371,1714667489532,-574.3,0.00036986,7]
[325261372,1714667489542,-993.52,0.00036986,7]
[325261373,1714667489552,-500.0,0.00036986,7]
[325261374,1714667489562,-500.0,0.00036986,7]
[325261375,1714667489572,-500.0,0.00036986,7]
[325261376,1714667489583,-596.19,0.00036986,7]
[325261377,1714667489593,-509.33705105,0.00036986,7]
[325261378,1714667489603,-745.05,0.00036986,7]
[325261379,1714667489613,-566.11,0.00036986,7]
[325261380,1714667489623,-500.0,0.00036986,7]
[325261381,1714667489633,-500.0,0.00036986,7]
[325261382,1714667489642,-500.0,0.00036986,7]
[325261383,1714667489654,-500.0,0.00036986,7]
[325261384,1714667489665,-500.0,0.00036986,7]
[325261385,1714667489674,-500.0,0.00036986,7]
[325261386,1714667489684,-579.39502898,0.00036986,7]
[325261387,1714667489695,-500.0,0.00036986,7]
[325261388,1714667489705,-500.0,0.00036986,7]
[325261389,1714667489715,-959.3,0.00036986,7]
[325261390,1714667489725,-500.0,0.00036986,7]
[325261391,1714667489735,-500.0,0.00036986,7]
[325261392,1714667489744,-500.0,0.00036986,7]
[325261393,1714667489754,-500.0,0.00036986,7]
[325261394,1714667489764,-500.0,0.00036986,7]
[325261395,1714667489775,-500.0,0.00036986,7]
[325261396,1714667489784,-500.0,0.00036986,7]
[325261397,1714667489794,-561.55012663,0.00036986,7]
[325261398,1714667489803,-517.53218146,0.00036986,7]
[325261399,1714667489812,-500.0,0.00036986,7]
[325261400,1714667489822,-500.0,0.00036986,7]
[325261401,1714667489831,-627.09,0.00036986,7]
[325261402,1714667489840,-1500.0,0.00036986,7]
[325261403,1714667489850,-500.0,0.00036986,7]
[325261404,1714667489859,-500.0,0.00036986,7]
[325261405,1714667489869,-500.0,0.00036986,7]
[325261406,1714667489879,-500.0,0.00036986,7]
[325261407,1714667489888,-649.87303664,0.00036986,7]
[325261408,1714667489897,-500.0,0.00036986,7]
[325261409,1714667489909,-500.0,0.00036986,7]
[325261410,1714667489919,-500.0,0.00036986,7]
[325261411,1714667489928,-512.23127184,0.00036986,7]
[325261412,1714667489938,-500.0,0.00036986,7]
[325261413,1714667489947,-755.19,0.00036986,7]
[325261414,1714667489957,-500.0,0.00036986,7]
[325261415,1714667489967,-500.0,0.00036986,7]
[325261416,1714667489976,-500.0,0.00036986,7]
[325261417,1714667489986,-500.0,0.00036986,7]
[325261418,1714667489996,-500.0,0.00036986,7]
[325261419,1714667490005,-500.0,0.00036986,7]
[325261420,1714667490016,-845.46,0.00036986,7]
[325261421,1714667490026,-500.0,0.00036986,7]
[325261422,1714667490036,-500.0,0.00036986,7]
[325261423,1714667490046,-337.79871104,0.00036986,7]
[325261424,1714667490056,-382.2086432,0.00036986,7]
[325261425,1714667490066,-500.0,0.00036986,7]
[325261426,1714667490075,-500.0,0.00036986,7]
[325261427,1714667490085,-500.0,0.00036986,7]
[325261428,1714667490094,-500.0,0.00036986,7]
[325261429,1714667490104,-500.0,0.00036986,7]
[325261430,1714667490113,-500.0,0.00036986,7]
[325261431,1714667490123,-500.0,0.00036986,7]
[325261432,1714667490134,-500.0,0.00036986,7]
[325261433,1714667490143,-500.0,0.00036986,7]
[325261434,1714667490155,-500.0,0.00036986,7]
[325261435,1714667490164,-500.0,0.00036986,7]
[325261436,1714667490174,-500.0,0.00036986,7]
[325261437,1714667490184,-500.0,0.00036986,7]
[325261438,1714667490193,-500.0,0.00036986,7]
[325261439,1714667490203,-500.0,0.00036986,7]
[325261440,1714667490212,-500.0,0.00036986,7]
[325261441,1714667490222,-500.0,0.00036986,7]
[325261442,1714667490231,-500.0,0.00036986,7]
[325261443,1714667490242,-611.89,0.00036986,7]
[325261444,1714667490253,-644.39,0.00036986,7]
[325261445,1714667490266,-615.29,0.00036986,7]
[325261446,1714667490275,-1140.87,0.00036986,7]
[325261447,1714667490284,-500.0,0.00036986,7]
[325261448,1714667490295,-500.0,0.00036986,7]
[325261449,1714667490304,-549.9,0.00036986,7]
[325261450,1714667490314,-500.0,0.00036986,7]
[325261451,1714667490328,-770.62,0.00036986,7]
[325261452,1714667490340,-500.0,0.00036986,7]
[325261453,1714667490350,-500.0,0.00036986,7]
[325261454,1714667490360,-500.0,0.00036986,7]
[325261455,1714667490370,-500.0,0.00036986,7]
[325261456,1714667490380,-500.0,0.00036986,7]
[325261457,1714667490390,-506.80044144,0.00036986,7]
[325261458,1714667490400,-500.0,0.00036986,7]
[325261459,1714667490411,-500.0,0.00036986,7]
[325261460,1714667490419,-500.0,0.00036986,7]
[325261461,1714667490429,-500.0,0.00036986,7]
[325261462,1714667490438,-500.0,0.00036986,7]
[325261463,1714667490451,-836.15,0.00036986,7]
[325261464,1714667490461,-500.0,0.00036986,7]
[325261465,1714667490471,-500.0,0.00036986,7]
[325261466,1714667490481,-500.0,0.00036986,7]
[325261467,1714667490490,-727.61,0.00036986,7]
[325261468,1714667490500,-500.0,0.00036986,7]
[325261469,1714667490510,-500.0,0.00036986,7]
[325261470,1714667490520,-1025.66,0.00036986,7]
[325261471,1714667490529,-500.0,0.00036986,7]
[325261472,1714667490538,-500.0,0.00036986,7]
[325261473,1714667490548,-500.0,0.00036986,7]
[325261474,1714667490559,-500.0,0.00036986,7]
[325261475,1714667490568,-500.0,0.00036986,7]
[325261476,1714667490578,-500.0,0.00036986,7]
[325261477,1714667490587,-500.0,0.00036986,7]
[325261478,1714667490597,-500.0,0.00036986,7]
[325261479,1714667490607,-500.0,0.00036986,7]
[325261480,1714667490616,-1147.41,0.00036986,7]
[325261481,1714667490625,-500.0,0.00036986,7]
[325261482,1714667490634,-500.0,0.00036986,7]
[325261483,1714667490644,-500.0,0.00036986,2]
[325261484,1714667490655,-500.0,0.00036986,7]
[325261485,1714667490665,-500.0,0.00036986,7]
[325261486,1714667490675,-500.0,0.00036986,7]
[325261487,1714667490686,-500.0,0.00036986,7]
[325261488,1714667490695,-500.0,0.00036986,7]
[325261489,1714667490705,-500.0,0.00036986,7]
[325261490,1714667490715,-500.0,0.00036986,7]
[325261491,1714667490724,-500.0,0.00036986,7]
[325261492,1714667490733,-500.0,0.00036986,7]
[325261493,1714667490743,-201.53313671,0.00036986,7]
[325261494,1714667490752,-500.0,0.00036986,7]
[325261495,1714667490761,-509.57082147,0.00036986,7]
[325261496,1714667490771,-500.0,0.00036986,7]
[325261497,1714667490781,-500.0,0.00036986,7]
[325261498,1714667490790,-500.0,0.00036986,7]
[325261499,1714667490800,-509.88082297,0.00036986,7]
[325261500,1714667490810,-583.1,0.00036986,7]
[325261501,1714667490820,-921.28,0.00036986,7]
[325261502,1714667490830,-500.0,0.00036986,7]
[325261503,1714667490839,-500.0,0.00036986,7]
[325261504,1714667490849,-500.0,0.00036986,7]
[325261505,1714667490858,-500.0,0.00036986,7]
[325261506,1714667490868,-551.41,0.00036986,7]
[325261507,1714667490877,-500.0,0.00036986,7]
[325261508,1714667490887,-769.1,0.00036986,7]
[325261509,1714667490896,-500.0,0.00036986,7]
[325261510,1714667490907,-150.0,0.00036986,7]
[325261511,1714667490916,-509.38053668,0.00036986,7]
[325261512,1714667490926,-724.19,0.00036986,7]
[325261513,1714667490936,-516.25,0.00036986,7]
[325261514,1714667490946,-500.0,0.00036986,7]
[325261515,1714667490955,-500.0,0.00036986,7]
[325261516,1714667490965,-512.47944566,0.00036986,7]
[325261517,1714667490976,-500.0,0.00036986,7]
[325261518,1714667490986,-500.0,0.00036986,7]
[325261519,1714667490995,-500.0,0.00036986,7]
[325261520,1714667491005,-500.0,0.00036986,7]
[325261521,1714667491016,-500.0,0.00036986,7]
[325261522,1714667491026,-500.0,0.00036986,7]
[325261523,1714667491036,-508.74463375,0.00036986,7]
[325261524,1714667491046,-973.87,0.00036986,7]
[325261525,1714667491056,-516.62455304,0.00036986,7]
[325261526,1714667491066,-500.0,0.00036986,7]
[325261527,1714667491075,-500.0,0.00036986,7]
[325261528,1714667491085,-500.0,0.00036986,7]
[325261529,1714667491094,-506.16548493,0.00036986,7]
[325261530,1714667491103,-716.47,0.00036986,7]
[325261531,1714667491114,-500.0,0.00036986,7]
[325261532,1714667491124,-500.0,0.00036986,7]
[325261533,1714667491135,-500.0,0.00036986,7]
[325261534,1714667491144,-561.51,0.00036986,7]
[325261535,1714667491155,-500.0,0.00036986,7]
[325261536,1714667491166,-500.0,0.00036986,7]
[325261537,1714667491175,-500.0,0.00036986,7]
[325261538,1714667491185,-500.0,0.00036986,7]
[325261539,1714667491194,-500.0,0.00036986,7]
[325261540,1714667491204,-500.0,0.00036986,7]
[325261541,1714667491214,-511.16956188,0.00036986,7]
[325261542,1714667491223,-500.0,0.00036986,7]
[325261543,1714667491232,-455.0,0.00036986,7]
[325261544,1714667491242,-500.0,0.00036986,7]
[325261545,1714667491252,-500.0,0.00036986,7]
[325261546,1714667491265,-500.0,0.00036986,7]
[325261547,1714667491275,-500.0,0.00036986,7]
[325261548,1714667491284,-500.0,0.00036986,7]
[325261549,1714667491294,-500.0,0.00036986,7]
[325261550,1714667491304,-500.0,0.00036986,7]
[325261551,1714667491314,-500.0,0.00036986,7]
[325261552,1714667491324,-500.0,0.00036986,7]
[325261553,1714667491333,-612.85,0.00036986,7]
[325261554,1714667491345,-500.0,0.00036986,7]
[325261555,1714667491355,-500.0,0.00036986,7]
[325261556,1714667491365,-500.0,0.00036986,7]
[325261557,1714667491374,-500.0,0.00036986,7]
[325261558,1714667491384,-411.43214601,0.00036986,7]
[325261559,1714667491393,-500.0,0.00036986,7]
[325261560,1714667491403,-500.0,0.00036986,7]
[325261561,1714667491412,-502.53333739,0.00036986,7]
[325261562,1714667491422,-500.0,0.00036986,7]
[325261563,1714667491431,-500.0,0.00036986,7]
[325261564,1714667491441,-500.0,0.00036986,7]
[325261565,1714667491450,-500.0,0.00036986,7]
[325261566,1714667491460,-500.0,0.00036986,7]
[325261567,1714667491469,-500.0,0.00036986,7]
[325261568,1714667491479,-500.0,0.00036986,7]
[325261569,1714667491488,-500.0,0.00036986,7]
[325261570,1714667491498,-500.0,0.00036986,7]
[325261571,1714667491507,-185.89701939,0.00036986,7]
[325261572,1714667491517,-500.0,0.00036986,7]
[325261573,1714667491527,-1013.57,0.00036986,7]
[325261574,1714667491538,-500.0,0.00036986,7]
[325261575,1714667491547,-743.73,0.00036986,7]
[325261576,1714667491558,-512.51778009,0.00036986,7]
[325261577,1714667491567,-500.0,0.00036986,7]
[325261578,1714667491576,-500.0,0.00036986,7]
[325261579,1714667491586,-500.0,0.00036986,7]
[325261580,1714667491595,-500.0,0.00036986,7]
[325261581,1714667491605,-634.72,0.00036986,7]
[325261582,1714667491614,-500.0,0.00036986,7]
[325261583,1714667491623,-500.0,0.00036986,7]
[325261584,1714667491633,-1157.4,0.00036986,7]
[325261585,1714667491642,-500.0,0.00036986,7]
[325261586,1714667491653,-500.0,0.00036986,7]
[325261587,1714667491662,-532.49,0.00036986,7]
[325261588,1714667491671,-500.0,0.00036986,7]
[325261589,1714667491680,-500.0,0.00036986,7]
[325261590,1714667491690,-500.0,0.00036986,7]
[325261591,1714667491699,-500.0,0.00036986,7]
[325261592,1714667491708,-500.0,0.00036986,7]
[325261593,1714667491718,-500.0,0.00036986,7]
[325261594,1714667491727,-500.0,0.00036986,7]
[325261595,1714667491737,-500.0,0.00036986,7]
[325261596,1714667491746,-500.0,0.00036986,7]
[325261597,1714667491756,-500.0,0.00036986,7]
[325261598,1714667491765,-603.56,0.00036986,7]
[325261599,1714667491775,-500.0,0.00036986,7]
[325261600,1714667491785,-500.0,0.00036986,7]
[325261601,1714667491794,-500.0,0.00036986,7]
[325261602,1714667491804,-991.1,0.00036986,7]
[325261603,1714667491813,-500.0,0.00036986,7]
[325261604,1714667491823,-840.49,0.00036986,7]
[325261605,1714667491833,-500.0,0.00036986,7]
[325261606,1714667491842,-500.0,0.00036986,7]
[325261607,1714667491852,-716.64,0.00036986,7]
[325261608,1714667491862,-949.83,0.00036986,7]
[325261609,1714667491951,-509.7076384,0.00036986,7]
[325261610,1714667491960,-500.0,0.00036986,7]
[325261611,1714667491969,-506.19,0.00036986,7]
[325261612,1714667491978,-500.0,0.00036986,7]
[325261613,1714667491988,-500.0,0.00036986,7]
[325261614,1714667491997,-500.0,0.00036986,7]
[325261615,1714667492006,-500.0,0.00036986,7]
[325261616,1714667492016,-1060.31,0.00036986,7]
[325261617,1714667492026,-1640.57,0.00036986,7]
[325261618,1714667492035,-500.0,0.00036986,7]
[325261619,1714667492044,-500.0,0.00036986,7]
[325261620,1714667492053,-500.0,0.00036986,7]
[325261621,1714667492062,-840.85,0.00036986,7]
[325261622,1714667492071,-500.0,0.00036986,7]
[325261623,1714667492080,-500.0,0.00036986,7]
[325261624,1714667492089,-500.0,0.00036986,7]
[325261625,1714667492098,-500.0,0.00036986,7]
[325261626,1714667492107,-500.0,0.00036986,7]
[325261627,1714667492117,-895.77,0.00036986,7]
[325261628,1714667492126,-519.72619468,0.00036986,7]
[325261629,1714667492135,-685.75,0.00036986,7]
[325261630,1714667492144,-500.0,0.00036986,7]
[325261631,1714667492155,-500.0,0.00036986,7]
[325261632,1714667492164,-500.0,0.00036986,7]
[325261633,1714667492173,-525.84,0.00036986,7]
[325261634,1714667492191,-500.0,0.00036986,7]
[325261635,1714667492202,-1191.0,0.00036986,7]
[325261636,1714667492211,-500.0,0.00036986,7]
[325261637,1714667492221,-500.0,0.00036986,7]
[325261638,1714667492230,-500.0,0.00036986,7]
[325261639,1714667492239,-1327.07,0.00036986,7]
[325261640,1714667492248,-500.0,0.00036986,7]
[325261641,1714667492259,-707.21,0.00036986,7]
[325261642,1714667492272,-500.0,0.00036986,7]
[325261643,1714667492281,-500.0,0.00036986,7]
[325261644,1714667492290,-500.0,0.00036986,7]
[325261645,1714667492301,-500.0,0.00036986,7]
[325261646,1714667492311,-477.61661069,0.00036986,7]
[325261647,1714667492320,-500.0,0.00036986,7]
[325261648,1714667492329,-517.79808225,0.00036986,7]
[325261649,1714667492339,-407.2102444,0.00036986,7]
[325261650,1714667492348,-447.38381403,0.00036986,7]
[325261651,1714667492358,-500.0,0.00036986,7]
[325261652,1714667492367,-608.89,0.00036986,7]
[325261653,1714667492377,-500.0,0.00036986,7]
[325261654,1714667492387,-500.0,0.00036986,7]
[325261655,1714667492396,-500.0,0.00036986,7]
[325261656,1714667492407,-1542.15,0.00036986,7]
[325261657,1714667492416,-500.0,0.00036986,7]
[325261658,1714667492426,-618.94415706,0.00036986,7]
[325261659,1714667492436,-500.0,0.00036986,7]
[325261660,1714667492445,-500.0,0.00036986,7]
[325261661,1714667492455,-1419.66,0.00036986,7]
[325261662,1714667492464,-500.0,0.00036986,7]
[325261663,1714667492474,-500.0,0.00036986,7]
[325261664,1714667492483,-500.0,0.00036986,7]
[325261665,1714667492492,-500.0,0.00036986,7]
[325261666,1714667492502,-500.0,0.00036986,7]
[325261667,1714667492512,-267.57148939,0.00036986,7]
[325261668,1714667492521,-500.0,0.00036986,7]
[325261669,1714667492530,-500.0,0.00036986,7]
[325261670,1714667492539,-1618.03,0.00036986,7]
[325261671,1714667492548,-3159.26,0.00036986,7]
[325261672,1714667492557,-472.81730067,0.00036986,7]
[325261673,1714667492566,-500.0,0.00036986,7]
[325261674,1714667492576,-500.0,0.00036986,7]
[325261675,1714667492585,-500.0,0.00036986,7]
[325261676,1714667492594,-500.0,0.00036986,7]
[325261677,1714667492604,-1844.86,0.00036986,7]
[325261678,1714667492614,-509.72475318,0.00036986,7]
[325261679,1714667492624,-500.0,0.00036986,7]
[325261680,1714667492633,-500.0,0.00036986,7]
[325261681,1714667492642,-500.0,0.00036986,7]
[325261682,1714667492653,-730.78,0.00036986,7]
[325261683,1714667492663,-500.0,0.00036986,7]
[325261684,1714667492672,-500.0,0.00036986,7]
[325261685,1714667492681,-500.0,0.00036986,7]
[325261686,1714667492690,-500.0,0.00036986,7]
[325261687,1714667492699,-653.03,0.00036986,7]
[325261688,1714667492709,-500.0,0.00036986,7]
[325261689,1714667492718,-500.0,0.00036986,7]
[325261690,1714667492727,-1523.48,0.00036986,7]
[325261691,1714667492736,-500.0,0.00036986,7]
[325261692,1714667492746,-967.92,0.00036986,7]
[325261693,1714667492755,-500.0,0.00036986,7]
[325261694,1714667492764,-2155.99,0.00036986,7]
[325261695,1714667492773,-500.0,0.00036986,7]
[325261696,1714667492783,-500.0,0.00036986,7]
[325261697,1714667492792,-500.0,0.00036986,7]
[325261698,1714667492802,-350.53089426,0.00036986,7]
[325261699,1714667492811,-500.0,0.00036986,7]
[325261700,1714667492820,-500.0,0.00036986,7]
[325261701,1714667492829,-1644.61,0.00036986,7]
[325261702,1714667492838,-555.04,0.00036986,7]
[325261703,1714667492847,-500.0,0.00036986,7]
[325261704,1714667492856,-506.92346194,0.00036986,7]
[325261705,1714667492865,-709.13,0.00036986,7]
[325261706,1714667492875,-500.0,0.00036986,7]
[325261707,1714667492884,-500.0,0.00036986,7]
[325261708,1714667492894,-508.93655453,0.00036986,7]
[325261709,1714667492903,-1624.89,0.00036986,7]
[325261710,1714667492912,-500.0,0.00036986,7]
[325261711,1714667492922,-571.28,0.00036986,7]
[325261712,1714667492931,-500.0,0.00036986,7]
[325261713,1714667492941,-801.44,0.00036986,7]
[325261714,1714667492950,-626.78,0.00036986,7]
[325261715,1714667492960,-500.0,0.00036986,7]
[325261716,1714667492970,-500.0,0.00036986,7]
[325261717,1714667492979,-638.54,0.00036986,7]
[325261718,1714667492989,-500.0,0.00036986,7]
[325261719,1714667492999,-500.0,0.00036986,7]
[325261720,1714667493009,-589.3919514,0.00036986,7]
[325261721,1714667493019,-834.42,0.00036986,7]
[325261722,1714667493029,-928.16,0.00036986,7]
[325261723,1714667493039,-927.43,0.00036986,7]
[325261724,1714667493049,-500.0,0.00036986,7]
[325261725,1714667493059,-500.0,0.00036986,7]
[325261726,1714667493068,-500.0,0.00036986,7]
[325261727,1714667493078,-500.0,0.00036986,7]
[325261728,1714667493088,-500.0,0.00036986,7]
[325261729,1714667493098,-500.0,0.00036986,7]
[325261730,1714667493107,-500.0,0.00036986,7]
[325261731,1714667493117,-2421.83,0.00036986,7]